fUSD/lending_fUSD_20260218
["ID","MTS","AMOUNT","RATE_DAILY","PERIOD"]
[405946273,1771435843515,-708.0,0.00013699,2]
[405946274,1771435843524,-567.0,0.00013699,2]
[405946276,1771435843534,-621.0,0.00013699,2]
[405946278,1771435843543,-500.0,0.00013699,2]
[405946280,1771435843552,-500.0,0.00013699,2]
[405946282,1771435843561,-420.0,0.00013699,2]
[405946284,1771435843570,-1052.0,0.00013699,2]
[405946285,1771435843579,-644.0,0.00013699,2]
[405946287,1771435843588,-150.0,0.00013699,2]
[405946289,1771435843598,-163.82152593,0.00013727,2]
[405946291,1771435843607,-503.46225796,0.00013727,2]
[405946292,1771435843618,-206.91472312,0.00013727,2]
[405946293,1771435843627,-500.0,0.00013727,2]
[405946294,1771435843637,-500.0,0.00013727,2]
[405946295,1771435843647,-506.731515,0.00013727,2]
[405946296,1771435843656,-500.0,0.00013727,2]
[405946297,1771435843665,-500.0,0.00013727,2]
[405946298,1771435843674,-500.0,0.00013727,2]
[405946299,1771435843683,-500.0,0.00013727,2]
[405946300,1771435843692,-500.0,0.00013727,2]
[405946301,1771435843702,-500.0,0.00013727,2]
[405946302,1771435843711,-502.82966005,0.00013727,2]
[405946303,1771435843721,-500.0,0.00013727,2]
[405946304,1771435843731,-513.56902932,0.00013727,2]
[405946305,1771435843885,-500.0,0.00013727,2]
[405946306,1771435843896,-501.02884299,0.00013727,2]
[405946307,1771435843906,-500.0,0.00013727,2]
[405946308,1771435843916,-500.0,0.00013727,2]
[405946309,1771435843926,-160.46286594,0.00013727,2]
[405946310,1771435843936,-500.0,0.00013727,2]
[405946311,1771435843946,-162.61077448,0.00013727,2]
[405946312,1771435843955,-500.0,0.00013727,2]
[405946313,1771435843964,-500.0,0.00013727,2]
[405946314,1771435843973,-504.32383214,0.00013727,2]
[405946315,1771435843983,-167.11974204,0.00013727,2]
[405946316,1771435843992,-500.0,0.00013727,2]
[405946317,1771435844001,-500.0,0.00013727,2]
[405946318,1771435844011,-500.0,0.00013727,2]
[405946319,1771435844020,-500.0,0.00013754,2]
[405946320,1771435844030,-500.0,0.00013754,2]
[405946321,1771435844040,-500.0,0.00013754,2]
[405946322,1771435844049,-500.0,0.00013754,2]
[405946323,1771435844059,-500.0,0.00013754,2]
[405946324,1771435844069,-972.0,0.00013754,2]
[405946325,1771435844079,-150.0,0.00013754,2]
[405946326,1771435844090,-534.0,0.00013754,2]
[405946327,1771435844101,-500.0,0.00013754,2]
[405946328,1771435844112,-708.0,0.00013754,2]
[405946329,1771435844123,-567.0,0.00013754,2]
[405946330,1771435844131,-621.0,0.00013754,2]
[405946331,1771435844142,-500.0,0.00013754,2]
[405946332,1771435844152,-500.0,0.00013754,2]
[405946333,1771435844162,-420.0,0.00013754,2]
[405946334,1771435844172,-1052.0,0.00013754,2]
[405946335,1771435844182,-644.0,0.00013754,2]
[405946336,1771435844196,-500.0,0.00013809,2]
[405946337,1771435844208,-503.42296453,0.00013809,2]
[405946338,1771435844218,-500.0,0.00013809,2]
[405946339,1771435844227,-437.404808,0.00013809,2]
[405946340,1771435844237,-500.0,0.00013809,2]
[405946341,1771435844248,-972.0,0.00013809,2]
[405946342,1771435844258,-213.1396322,0.00013809,2]
[405946343,1771435844270,-534.0,0.00013809,2]
[405946344,1771435844281,-500.0,0.00013809,2]
[405946345,1771435844292,-708.0,0.00013809,2]
[405946346,1771435844301,-567.0,0.00013809,2]
[405946347,1771435844311,-621.0,0.00013809,2]
[405946348,1771435844323,-500.0,0.00013809,2]
[405946349,1771435844334,-500.0,0.00013809,2]
[405946350,1771435844344,-420.0,0.00013809,2]
[405946351,1771435844354,-1052.0,0.00013809,2]
[405946352,1771435844365,-644.0,0.00013809,2]
[405946353,1771435844374,-200.0,0.00013836,2]
[405946354,1771435844383,-28148.9613212,0.00013844,2]
[405946355,1771435844393,-500.0,0.00013863,2]
[405946356,1771435844403,-500.0,0.00013863,2]
[405946357,1771435844414,-513.70916545,0.00013863,2]
[405946358,1771435844424,-972.0,0.00013863,2]
[405946359,1771435844434,-534.0,0.00013863,2]
[405946360,1771435844444,-500.0,0.00013863,2]
[405946361,1771435844457,-708.0,0.00013863,2]
[405946362,1771435844467,-567.0,0.00013863,2]
[405946363,1771435844476,-621.0,0.00013863,2]
[405946364,1771435844487,-500.0,0.00013863,2]
[405946365,1771435844497,-500.0,0.00013863,2]
[405946366,1771435844506,-420.0,0.00013863,2]
[405946367,1771435844516,-1052.0,0.00013863,2]
[405946368,1771435844528,-644.0,0.00013863,2]
[405946369,1771435844538,-1100.0,0.000139,5]
[405946370,1771435844548,-500.0,0.00013918,2]
[405946371,1771435844558,-500.0,0.00013918,2]
[405946372,1771435844569,-972.0,0.00013918,2]
[405946373,1771435844579,-534.0,0.00013918,2]
[405946374,1771435844588,-500.0,0.00013918,2]
[405946375,1771435844598,-708.0,0.00013918,2]
[405946376,1771435844607,-567.0,0.00013918,2]
[405946377,1771435844616,-621.0,0.00013918,2]
[405946378,1771435844625,-500.0,0.00013918,2]
[405946379,1771435844635,-500.0,0.00013918,2]
[405946380,1771435844644,-420.0,0.00013918,2]
[405946381,1771435844654,-1052.0,0.00013918,2]
[405946382,1771435844663,-644.0,0.00013918,2]
[405946383,1771435844672,-500.0,0.00013973,2]
[405946384,1771435844682,-500.0,0.00013973,2]
[405946385,1771435844691,-972.0,0.00013973,2]
[405946386,1771435844701,-534.0,0.00013973,2]
[405946387,1771435844710,-500.0,0.00013973,2]
[405946388,1771435844719,-708.0,0.00013973,2]
[405946389,1771435844728,-567.0,0.00013973,2]
[405946390,1771435844737,-621.0,0.00013973,2]
[405946391,1771435844747,-500.0,0.00013973,2]
[405946392,1771435844756,-500.0,0.00013973,2]
[405946393,1771435844765,-1052.0,0.00013973,2]
[405946394,1771435844775,-420.0,0.00013973,2]
[405946395,1771435844784,-644.0,0.00013973,2]
[405946396,1771435844795,-413.92,0.00014027,2]
[405946397,1771435844804,-500.0,0.00014028,2]
[405946398,1771435844814,-500.0,0.00014028,2]
[405946399,1771435844824,-972.0,0.00014028,2]
[405946400,1771435844834,-534.0,0.00014028,2]
[405946401,1771435844843,-500.0,0.00014028,2]
[405946402,1771435844853,-708.0,0.00014028,2]
[405946403,1771435844862,-567.0,0.00014028,2]
[405946404,1771435844872,-621.0,0.00014028,2]
[405946405,1771435844882,-622.0,0.00014028,2]
[405946406,1771435844892,-500.0,0.00014028,2]
[405946407,1771435844902,-1052.0,0.00014028,2]
[405946408,1771435844912,-420.0,0.00014028,2]
[405946409,1771435844921,-644.0,0.00014028,2]
[405946410,1771435844931,-500.0,0.00014083,2]
[405946411,1771435844940,-500.0,0.00014083,2]
[405946412,1771435844950,-972.0,0.00014083,2]
[405946413,1771435844960,-534.0,0.00014083,2]
[405946414,1771435844969,-500.0,0.00014083,2]
[405946415,1771435844978,-708.0,0.00014083,2]
[405946416,1771435844987,-567.0,0.00014083,2]
[405946417,1771435844996,-621.0,0.00014083,2]
[405946418,1771435845006,-500.0,0.00014083,2]
[405946419,1771435845016,-420.0,0.00014083,2]
[405946420,1771435845025,-1052.0,0.00014083,2]
[405946421,1771435845034,-644.0,0.00014083,2]
[405946422,1771435845044,-198.93,0.00014115,2]
[405946423,1771435845054,-500.0,0.00014137,2]
[405946424,1771435845064,-500.0,0.00014137,2]
[405946425,1771435845075,-972.0,0.00014137,2]
[405946426,1771435845085,-534.0,0.00014137,2]
[405946427,1771435845095,-500.0,0.00014137,2]
[405946428,1771435845104,-708.0,0.00014137,2]
[405946429,1771435845115,-567.0,0.00014137,2]
[405946430,1771435845125,-621.0,0.00014137,2]
[405946431,1771435845135,-500.0,0.00014137,2]
[405946432,1771435845144,-420.0,0.00014137,2]
[405946433,1771435845153,-1052.0,0.00014137,2]
[405946434,1771435845162,-644.0,0.00014137,2]
[405946435,1771435845173,-367.77,0.0001416,2]
[405946436,1771435845184,-500.0,0.00014192,2]
[405946437,1771435845200,-500.0,0.00014192,2]
[405946438,1771435845209,-972.0,0.00014192,2]
[405946439,1771435845220,-534.0,0.00014192,2]
[405946440,1771435845231,-500.0,0.00014192,2]
[405946441,1771435845244,-708.0,0.00014192,2]
[405946442,1771435845254,-567.0,0.00014192,2]
[405946443,1771435845265,-621.0,0.00014192,2]
[405946444,1771435845275,-500.0,0.00014192,2]
[405946445,1771435845287,-420.0,0.00014192,2]
[405946446,1771435845296,-1052.0,0.00014192,2]
[405946447,1771435845306,-644.0,0.00014192,2]
[405946448,1771435845316,-578.20924308,0.0001423,2]
[405946449,1771435845325,-308.62455366,0.0001423,2]
[405946450,1771435845334,-277.35679052,0.0001423,2]
[405946451,1771435845343,-250.0,0.0001423,2]
[405946452,1771435845353,-166.00545754,0.0001423,2]
[405946453,1771435845363,-250.0,0.0001423,2]
[405946454,1771435845372,-250.0,0.0001423,2]
[405946455,1771435845381,-250.0,0.0001423,2]
[405946456,1771435845390,-250.0,0.0001423,2]
[405946457,1771435845399,-250.0,0.0001423,2]
[405946458,1771435845409,-250.0,0.0001423,2]
[405946459,1771435845418,-1000.0,0.0001423,2]
[405946460,1771435845427,-255.07259394,0.0001423,2]
[405946461,1771435845437,-1000.0,0.0001423,2]
[405946462,1771435845447,-1000.0,0.0001423,2]
[405946463,1771435845456,-798.00068592,0.0001423,2]
[405946464,1771435845465,-162.380719,0.0001423,2]
[405946465,1771435845475,-500.0,0.0001423,2]
[405946466,1771435845484,-500.0,0.0001423,2]
[405946467,1771435845493,-174.61919141,0.0001423,2]
[405946468,1771435845502,-500.0,0.0001423,2]
[405946469,1771435845512,-500.0,0.0001423,2]
[405946470,1771435845521,-500.0,0.0001423,2]
[405946471,1771435845530,-500.0,0.0001423,2]
[405946472,1771435845540,-500.0,0.0001423,2]
[405946473,1771435845549,-500.0,0.0001423,2]
[405946474,1771435845559,-500.0,0.0001423,2]
[405946475,1771435845568,-500.0,0.0001423,2]
[405946476,1771435845578,-500.0,0.0001423,2]
[405946477,1771435845587,-288.82629962,0.0001423,2]
[405946478,1771435845596,-500.0,0.0001423,2]
[405946479,1771435845606,-500.0,0.0001423,2]
[405946480,1771435845616,-693.3919763,0.0001423,2]
[405946481,1771435845625,-500.0,0.0001423,2]
[405946482,1771435845635,-500.0,0.0001423,2]
[405946483,1771435845645,-500.0,0.0001423,2]
[405946484,1771435845654,-500.0,0.0001423,2]
[405946485,1771435845664,-500.0,0.0001423,2]
[405946486,1771435845674,-500.0,0.0001423,2]
[405946487,1771435845683,-500.0,0.0001423,2]
[405946488,1771435845693,-500.0,0.00014247,2]
[405946489,1771435845702,-154.0,0.00014247,2]
[405946490,1771435845712,-972.0,0.00014247,2]
[405946491,1771435845722,-534.0,0.00014247,2]
[405946492,1771435845731,-484.0,0.00014247,2]
[405946493,1771435845741,-708.0,0.00014247,2]
[405946496,1771435845751,-567.0,0.00014247,2]
[405946499,1771435845760,-621.0,0.00014247,2]
[405946501,1771435845770,-500.0,0.00014247,2]
[405946503,1771435845779,-420.0,0.00014247,2]
[405946505,1771435845789,-1052.0,0.00014247,2]
[405946506,1771435845799,-644.0,0.00014247,2]
[405946508,1771435845808,-1000.0,0.00014275,2]
[405946509,1771435845818,-1000.0,0.00014275,2]
[405946510,1771435845827,-1000.0,0.00014275,2]
[405946511,1771435845836,-1000.0,0.00014275,2]
[405946512,1771435845845,-1000.0,0.00014275,2]
[405946513,1771435845855,-1000.0,0.00014275,2]
[405946514,1771435845864,-1000.0,0.00014275,2]
[405946515,1771435845874,-1000.0,0.00014275,2]
[405946516,1771435845883,-1000.0,0.00014275,2]
[405946517,1771435845892,-201.94949342,0.00014275,2]
[405946518,1771435845902,-719.04747942,0.00014285,2]
[405946519,1771435845911,-1813.59875997,0.00014295,2]
[405946520,1771435845922,-500.0,0.00014302,2]
[405946521,1771435845932,-972.0,0.00014302,2]
[405946522,1771435845941,-534.0,0.00014302,2]
[405946523,1771435845951,-708.0,0.00014302,2]
[405946524,1771435845961,-567.0,0.00014302,2]
[405946525,1771435845972,-621.0,0.00014302,2]
[405946526,1771435845982,-500.0,0.00014302,2]
[405946527,1771435845993,-420.0,0.00014302,2]
[405946528,1771435846003,-1052.0,0.00014302,2]
[405946529,1771435846012,-644.0,0.00014302,2]
[405946530,1771435846021,-745.65223616,0.0001434,2]
[405946531,1771435846031,-500.0,0.00014357,2]
[405946532,1771435846041,-972.0,0.00014357,2]
[405946533,1771435846053,-534.0,0.00014357,2]
[405946534,1771435846064,-708.0,0.00014357,2]
[405946535,1771435846073,-567.0,0.00014357,2]
[405946536,1771435846082,-621.0,0.00014357,2]
[405946537,1771435846092,-290.08933819,0.00014357,2]
[405946538,1771435846103,-1052.0,0.00014357,2]
[405946539,1771435846114,-420.0,0.00014357,2]
[405946540,1771435846124,-644.0,0.00014357,2]
[405946541,1771435846134,-255.04,0.00014385,2]
[405946542,1771435846144,-773.2413689,0.00014395,2]
[405946543,1771435846155,-174.38,0.00014406,2]
[405946544,1771435846166,-500.0,0.00014411,2]
[405946545,1771435846176,-972.0,0.00014411,2]
[405946547,1771435846185,-534.0,0.00014411,2]
[405946548,1771435846200,-708.0,0.00014411,2]
[405946549,1771435846210,-567.0,0.00014411,2]
[405946550,1771435846219,-621.0,0.00014411,2]
[405946551,1771435846231,-1052.0,0.00014411,2]
[405946552,1771435846243,-420.0,0.00014411,2]
[405946553,1771435846253,-644.0,0.00014411,2]
[405946554,1771435846263,-165.78,0.00014432,2]
[405946555,1771435846274,-801.85129955,0.0001445,2]
[405946556,1771435846283,-582.0,0.00014466,2]
[405946557,1771435846293,-972.0,0.00014466,2]
[405946558,1771435846302,-534.0,0.00014466,2]
[405946559,1771435846311,-708.0,0.00014466,2]
[405946560,1771435846320,-567.0,0.00014466,2]
[405946561,1771435846330,-621.0,0.00014466,2]
[405946563,1771435846339,-420.0,0.00014466,2]
[405946565,1771435846348,-1052.0,0.00014466,2]
[405946567,1771435846357,-644.0,0.00014466,2]
[405946569,1771435846366,-831.51979763,0.00014505,2]
[405946571,1771435846375,-972.0,0.00014521,2]
[405946573,1771435846384,-534.0,0.00014521,2]
[405946575,1771435846393,-708.0,0.00014521,2]
[405946577,1771435846402,-567.0,0.00014521,2]
[405946579,1771435846411,-621.0,0.00014521,2]
[405946581,1771435846421,-1052.0,0.00014521,2]
[405946583,1771435846430,-420.0,0.00014521,2]
[405946585,1771435846441,-644.0,0.00014521,2]
[405946587,1771435846452,-862.28603014,0.0001456,2]
[405946590,1771435846467,-972.0,0.00014576,2]
[405946592,1771435846478,-534.0,0.00014576,2]
[405946594,1771435846488,-708.0,0.00014576,2]
[405946596,1771435846499,-567.0,0.00014576,2]
[405946599,1771435846510,-621.0,0.00014576,2]
[405946601,1771435846519,-1052.0,0.00014576,2]
[405946603,1771435846528,-420.0,0.00014576,2]
[405946605,1771435846538,-644.0,0.00014576,2]
[405946607,1771435846549,-894.19061326,0.00014615,2]
[405946609,1771435846559,-972.0,0.00014631,2]
[405946611,1771435846571,-534.0,0.00014631,2]
[405946613,1771435846581,-708.0,0.00014631,2]
[405946615,1771435846591,-567.0,0.00014631,2]
[405946616,1771435846602,-621.0,0.00014631,2]
[405946618,1771435846612,-1052.0,0.00014631,2]
[405946620,1771435846622,-420.0,0.00014631,2]
[405946622,1771435846632,-644.0,0.00014631,2]
[405946623,1771435846643,-17075.00938728,0.0001464,2]
[405946624,1771435846653,-927.27566595,0.0001467,2]
[405946625,1771435846664,-972.0,0.00014685,2]
[405946626,1771435846675,-534.0,0.00014685,2]
[405946627,1771435846686,-708.0,0.00014685,2]
[405946628,1771435846697,-567.0,0.00014685,2]
[405946629,1771435846707,-621.0,0.00014685,2]
[405946630,1771435846717,-1052.0,0.00014685,2]
[405946631,1771435846728,-644.0,0.00014685,2]
[405946632,1771435846740,-420.0,0.00014685,2]
[405946633,1771435846751,-961.58486559,0.00014725,2]
[405946634,1771435846762,-972.0,0.0001474,2]
[405946635,1771435846773,-534.0,0.0001474,2]
[405946636,1771435846793,-708.0,0.0001474,2]
[405946637,1771435846805,-567.0,0.0001474,2]
[405946638,1771435846816,-621.0,0.0001474,2]
[405946639,1771435846828,-644.0,0.0001474,2]
[405946640,1771435846840,-1052.0,0.0001474,2]
[405946641,1771435846850,-420.0,0.0001474,2]
[405946642,1771435846860,-287.61899177,0.00014778,2]
[405946643,1771435846884,-181.08010149,0.00014778,2]
[405946644,1771435846898,-997.16350561,0.0001478,2]
[405946645,1771435846910,-972.0,0.00014795,2]
[405946646,1771435846920,-534.0,0.00014795,2]
[405946647,1771435846933,-708.0,0.00014795,2]
[405946648,1771435846944,-567.0,0.00014795,2]
[405946649,1771435846955,-621.0,0.00014795,2]
[405946650,1771435846967,-644.0,0.00014795,2]
[405946651,1771435846979,-1052.0,0.00014795,2]
[405946652,1771435846991,-420.0,0.00014795,2]
[405946653,1771435847003,-248.74,0.0001482,2]
[405946654,1771435847015,-191.23979414,0.00014823,2]
[405946655,1771435847027,-911.55685535,0.00014823,2]
[405946656,1771435847039,-1500.0,0.00014823,2]
[405946657,1771435847050,-640.426295,0.00014823,2]
[405946658,1771435847060,-692.85283733,0.00014823,2]
[405946659,1771435847071,-1500.0,0.00014823,2]
[405946660,1771435847085,-1500.0,0.00014823,2]
[405946661,1771435847097,-1000.0,0.00014823,2]
[405946662,1771435847111,-1500.0,0.00014823,2]
[405946663,1771435847123,-972.0,0.0001485,2]
[405946664,1771435847136,-534.0,0.0001485,2]
[405946665,1771435847147,-708.0,0.0001485,2]
[405946666,1771435847160,-567.0,0.0001485,2]
[405946667,1771435847172,-621.0,0.0001485,2]
[405946668,1771435847185,-644.0,0.0001485,2]
[405946669,1771435847201,-420.0,0.0001485,2]
[405946670,1771435847214,-1052.0,0.0001485,2]
[405946671,1771435847224,-972.0,0.00014904,2]
[405946672,1771435847235,-534.0,0.00014904,2]
[405946673,1771435847246,-708.0,0.00014904,2]
[405946674,1771435847257,-567.0,0.00014904,2]
[405946675,1771435847270,-621.0,0.00014904,2]
[405946676,1771435847280,-986.0,0.00014959,2]
[405946677,1771435847291,-534.44440465,0.00014959,2]
[405946678,1771435847303,-718.0,0.00014959,2]
[405946679,1771435847318,-581.0,0.00014959,2]
[405946680,1771435847330,-629.0,0.00014959,2]
[405946681,1771435847342,-201.76087453,0.00015,3]
[405946682,1771435847354,-250.0,0.00015,2]
[405946683,1771435847366,-181.15752624,0.00015248,2]
[405946684,1771435847378,-5000.0,0.00015257,2]
[405946685,1771435847389,-207.29,0.00015294,2]
[405946686,1771435847400,-298.26089446,0.00015326,2]
[405946687,1771435847412,-187.78006525,0.00015326,2]
[405946688,1771435847424,-2007.79483991,0.00015371,2]
[405946689,1771435847435,-500.39672597,0.00015371,2]
[405946690,1771435847445,-2000.0,0.00015371,2]
[405946691,1771435847456,-2000.0,0.00015371,2]
[405946692,1771435847465,-1000.0,0.00015425,2]
[405946693,1771435847475,-1000.0,0.00015465,2]
[405946694,1771435847485,-1813.59875997,0.00015497,2]
[405946695,1771435847495,-1000.0,0.00015521,2]
[405946696,1771435847506,-198.93,0.00015554,2]
[405946697,1771435847517,-367.77,0.00015569,2]
[405946698,1771435847529,-1000.0,0.0001559,2]
[405946699,1771435847540,-168.3888056,0.00015599,2]
[405946700,1771435847551,-1000.0,0.00015614,2]
[405946701,1771435847561,-1055.9,0.00015631,2]
[405946702,1771435847570,-9137.12,0.00015654,2]
[405946703,1771435847579,-1000.0,0.00015683,2]
[405946704,1771435847589,-17075.00938728,0.00015726,2]
[405946705,1771435847600,-1000.0,0.00015746,2]
[405946706,1771435847609,-255.04,0.0001577,2]
[405946707,1771435847619,-1000.0,0.00015798,2]
[405946708,1771435847628,-1000.0,0.00015825,2]
[405946709,1771435847638,-1000.0,0.00015832,2]
[405946710,1771435847650,-1000.0,0.00015832,2]
[405946711,1771435847660,-413.92,0.0001585,2]
[405946712,1771435847671,-165.78,0.00015865,2]
[405946713,1771435847681,-309.29654756,0.00015874,2]
[405946714,1771435847693,-194.72792766,0.00015874,2]
[405946715,1771435847705,-1000.0,0.00015899,2]
[405946716,1771435847715,-198.93,0.000159,2]
[405946717,1771435847726,-1000.0,0.00015912,2]
[405946718,1771435847736,-2500.0,0.00015919,2]
[405946719,1771435847746,-1000.0,0.00015984,2]
[405946720,1771435847756,-506.0,0.0001605,2]
[405946721,1771435847765,-174.38,0.0001606,2]
[405946722,1771435847775,-9999.99,0.00016116,2]
[405946723,1771435847785,-1000.0,0.00016138,2]
[405946724,1771435847796,-1000.0,0.00016162,2]
[405946725,1771435847806,-5000.00269632,0.000162,5]
[405946726,1771435847816,-1000.0,0.00016209,2]
[405946727,1771435847826,-1000.0,0.00016234,2]
[405946728,1771435847836,-214.59643228,0.00016276,2]
[405946729,1771435847845,-1000.0,0.00016277,2]
[405946730,1771435847855,-150.0,0.00016298,2]
[405946731,1771435847865,-1000.0,0.00016304,2]
[405946732,1771435847876,-1000.0,0.00016359,2]
[405946733,1771435847886,-1000.0,0.0001637,2]
[405946734,1771435847896,-1000.0,0.00016374,2]
[405946735,1771435847906,-150.0,0.00016376,2]
[405946736,1771435847916,-1000.0,0.00016383,2]
[405946737,1771435847926,-1000.0,0.00016411,2]
[405946738,1771435847936,-320.74051982,0.00016422,2]
[405946739,1771435847947,-201.93286099,0.00016422,2]
[405946740,1771435847957,-266.3746021,0.00016438,2]
[405946741,1771435847966,-1000.0,0.00016453,2]
[405946742,1771435847977,-3000.0,0.00016467,2]
[405946743,1771435847987,-1000.0,0.00016529,2]
[405946744,1771435847998,-1000.0,0.00016532,2]
[405946745,1771435848008,-1000.0,0.00016534,2]
[405946746,1771435848019,-1000.0,0.00016543,2]
[405946747,1771435848029,-1000.0,0.00016561,2]
[405946748,1771435848039,-1000.0,0.00016589,2]
[405946749,1771435848048,-1000.0,0.00016604,2]
[405946750,1771435848058,-1000.0,0.00016616,2]
[405946751,1771435848068,-1000.0,0.00016628,2]
[405946752,1771435848078,-1000.0,0.00016649,2]
[405946753,1771435848088,-1000.0,0.00016672,2]
[405946754,1771435848098,-1000.0,0.00016676,2]
[405946755,1771435848108,-1000.0,0.00016681,2]
[405946756,1771435848118,-1000.0,0.00016689,2]
[405946757,1771435848128,-1813.59875997,0.00016698,2]
[405946758,1771435848138,-1000.0,0.0001672,2]
[405946759,1771435848148,-1000.0,0.00016742,2]
[405946760,1771435848158,-1000.0,0.00016761,2]
[405946761,1771435848168,-1000.0,0.00016766,2]
[405946762,1771435848178,-500.0,0.00016779,2]
[405946763,1771435848188,-2000.0,0.000168,2]
[405946764,1771435848203,-314.0,0.00016804,2]
[405946765,1771435848213,-1000.0,0.00016807,2]
[405946766,1771435848223,-1000.0,0.00016809,2]
[405946767,1771435848235,-17075.00938728,0.00016813,2]
[405946768,1771435848244,-314.0,0.00016828,2]
[405946769,1771435848254,-1000.0,0.00016835,2]
[405946770,1771435848264,-1000.0,0.00016869,2]
[405946771,1771435848275,-1000.0,0.00016884,2]
[405946772,1771435848286,-1000.0,0.00016905,2]
[405946773,1771435848297,-1000.0,0.00016911,2]
[405946774,1771435848307,-1000.0,0.00016917,2]
[405946775,1771435848317,-314.0,0.00016928,2]
[405946776,1771435848327,-1149.27516242,0.00016956,2]
[405946777,1771435848337,-1000.0,0.00016964,2]
[405946778,1771435848348,-1000.0,0.00016966,2]
[405946779,1771435848358,-37237.52246235,0.00016966,2]
[405946780,1771435848368,-174.61919141,0.00016968,2]
[405946781,1771435848378,-599.60298507,0.00016969,2]
[405946782,1771435848389,-332.60791905,0.0001697,2]
[405946783,1771435848400,-209.40437684,0.0001697,2]
[405946784,1771435848411,-595.96,0.00016978,2]
[405946785,1771435848421,-1121.34,0.00016978,2]
[405946786,1771435848431,-200.0,0.00016983,2]
[405946787,1771435848442,-20545.37135558,0.00017,2]
[405946788,1771435848452,-300.0,0.00017,2]
[405946789,1771435848462,-506.0,0.00017005,2]
[405946790,1771435848472,-3500.0,0.00017015,2]
[405946791,1771435848482,-1000.0,0.00017036,2]
[405946792,1771435848491,-245.18,0.00017038,2]
[405946793,1771435848501,-2836.0,0.0001704,2]
[405946794,1771435848511,-1000.0,0.00017045,2]
[405946795,1771435848521,-1000.0,0.00017045,2]
[405946796,1771435848531,-314.0,0.00017067,2]
[405946797,1771435848540,-1000.0,0.00017075,2]
[405946798,1771435848556,-1000.0,0.0001708,2]
[405946799,1771435848565,-1000.0,0.00017084,2]
[405946800,1771435848575,-1000.0,0.00017089,2]
[405946801,1771435848584,-245.18,0.00017098,2]
[405946802,1771435848597,-1000.0,0.00017108,2]
[405946803,1771435848607,-314.0,0.00017108,2]
[405946804,1771435848616,-1000.0,0.00017112,2]
[405946805,1771435848626,-1000.0,0.00017116,2]
[405946806,1771435848636,-1000.0,0.00017128,2]
[405946807,1771435848646,-350.0,0.00017137,2]
[405946808,1771435848656,-1000.0,0.00017144,2]
[405946809,1771435848665,-314.0,0.00017146,2]
[405946810,1771435848675,-314.0,0.00017155,2]
[405946811,1771435848685,-245.18,0.00017157,2]
[405946812,1771435848694,-1000.0,0.00017179,2]
[405946813,1771435848704,-1000.0,0.00017216,2]
[405946814,1771435848713,-1000.0,0.00017216,2]
[405946815,1771435848723,-314.0,0.00017216,2]
[405946816,1771435848733,-170.03,0.00017237,2]
[405946817,1771435848743,-1080.27787936,0.00017239,2]
[405946818,1771435848752,-150.0,0.00017241,2]
[405946819,1771435848762,-150.0,0.00017252,2]
[405946820,1771435848772,-1000.0,0.00017264,2]